fUST/lending_fUST_20260609
["ID","MTS","AMOUNT","RATE_DAILY","PERIOD"]
[424552243,1780993846000,-1899.83256176,0.00014444,8]
[424552235,1780993846000,-30083.68409102,0.00014444,8]
[424552274,1780993846000,-8077.24999995,0.00014444,8]
[424552896,1780993962000,474.06152882,8.002e-05,2]
[424552926,1780994484000,662.05,0.00017,30]
[424552946,1780995032000,-1039.1768457,0.0001282,2]
[424552941,1780995032000,-4777.34481708,0.00010311,2]
[424552940,1780995032000,-3605.78293669,0.00010208,2]
[424552945,1780995032000,-308.51605213,0.00012819,2]
[424552943,1780995032000,-151.0,0.00010842,2]
[424552944,1780995032000,-549.5551536,0.00012819,2]
[424552942,1780995032000,-222.65518292,0.00010311,2]
[424552948,1780995032000,-356.1667011,0.00013699,2]
[424552954,1780995032000,-257.89052071,0.00013918,2]
[424552952,1780995032000,-500.0,0.00013918,2]
[424552951,1780995032000,-245.89825499,0.00013918,2]
[424552950,1780995032000,-500.0,0.00013917,2]
[424552949,1780995032000,-403.45509872,0.00013699,2]
[424552953,1780995032000,-242.10947929,0.00013918,2]
[424552955,1780995032000,-417.99039673,0.00013918,2]
[424552947,1780995032000,-240.37820018,0.00013699,2]
[424552956,1780995032000,-403.85690535,0.00013918,2]
[424553061,1780995038000,-833.33,0.00014443,2]
[424553040,1780995038000,-500.0,0.00013918,2]
[424553041,1780995038000,-500.0,0.00013918,2]
[424553038,1780995038000,-500.0,0.00013918,2]
[424553043,1780995038000,-500.0,0.00013918,2]
[424553049,1780995038000,-1443.5831413,0.00013919,2]
[424553046,1780995038000,-600.0,0.00013918,2]
[424553048,1780995038000,-12042.5869749,0.00013919,2]
[424553047,1780995038000,-507.01454159,0.00013918,2]
[424553044,1780995038000,-833.33,0.00013918,2]
[424553036,1780995038000,-500.0,0.00013918,2]
[424553034,1780995038000,-96.14309465,0.00013918,2]
[424553050,1780995038000,-157.9965886,0.00013919,2]
[424553045,1780995038000,-500.0,0.00013918,2]
[424553063,1780995038000,-833.33,0.00014443,2]
[424553042,1780995038000,-500.0,0.00013918,2]
[424553052,1780995038000,-18360.0400667,0.00013919,2]
[424553053,1780995038000,-1542.8812104,0.00013919,2]
[424553069,1780995038000,-109141.58299877,0.00014444,8]
[424553070,1780995038000,-157.20864,0.00014444,2]
[424553068,1780995038000,-203.71472788,0.00014443,2]
[424553067,1780995038000,-500.0,0.00014443,2]
[424553065,1780995038000,-500.0,0.00014443,2]
[424553059,1780995038000,-833.33,0.00014443,2]
[424553066,1780995038000,-500.0,0.00014443,2]
[424553060,1780995038000,-833.33,0.00014443,2]
[424553056,1780995038000,-152.0,0.0001416,2]
[424553058,1780995038000,-187.703454,0.00014413,2]
[424553055,1780995038000,-636.20372673,0.00014084,2]
[424553054,1780995038000,-1985.36779705,0.00013984,2]
[424553062,1780995038000,-833.33,0.00014443,2]
[424553057,1780995038000,-399.59277616,0.00014344,2]
[424553064,1780995038000,-500.0,0.00014443,2]
[424553112,1780995039000,-500.0,0.00015889,2]
[424553109,1780995039000,-500.0,0.00015889,2]
[424553110,1780995039000,-500.0,0.00015889,2]
[424553103,1780995039000,-500.0,0.00015889,2]
[424553107,1780995039000,-500.0,0.00015889,2]
[424553111,1780995039000,-500.0,0.00015889,2]
[424553104,1780995039000,-500.0,0.00015889,2]
[424553113,1780995039000,-500.0,0.00015889,2]
[424553106,1780995039000,-500.0,0.00015889,2]
[424553108,1780995039000,-359.21948023,0.00015889,2]
[424553115,1780995039000,-547.2779755,0.00015889,2]
[424553105,1780995039000,-500.0,0.00015889,2]
[424553125,1780995039000,-316.37776668,0.00016076,2]
[424553121,1780995039000,-639.73135587,0.00016076,2]
[424553114,1780995039000,-500.0,0.00015889,2]
[424553120,1780995039000,-722.55503846,0.00016076,2]
[424553118,1780995039000,-399.59277614,0.00016045,2]
[424553119,1780995039000,-401.41946581,0.00016076,2]
[424553116,1780995039000,-248.96083718,0.00015889,2]
[424553123,1780995039000,-328.24705095,0.00016076,2]
[424553099,1780995039000,-467.09391694,0.00015889,2]
[424553122,1780995039000,-1151.51644056,0.00016076,2]
[424553124,1780995039000,-175.76542593,0.00016076,2]
[424553137,1780995039000,-833.33,0.00016437,2]
[424553138,1780995039000,-833.33,0.00016437,2]
[424553128,1780995039000,-1401.41919752,0.00016294,7]
[424553126,1780995039000,-1283.25774831,0.00016076,2]
[424553117,1780995039000,-151.5,0.00015889,2]
[424553100,1780995039000,-151.5,0.00015889,2]
[424553095,1780995039000,-500.0,0.00015889,2]
[424553093,1780995039000,-500.0,0.00015889,2]
[424553074,1780995039000,-833.33,0.00015526,2]
[424553072,1780995039000,-186.575132,0.00015068,2]
[424553077,1780995039000,-152.0,0.00015538,7]
[424553073,1780995039000,-399.59277614,0.00015478,2]
[424553076,1780995039000,-500.0,0.00015538,7]
[424553075,1780995039000,-474.62724954,0.00015538,7]
[424553071,1780995039000,-399.59277614,0.00014911,2]
[424553084,1780995039000,-500.0,0.00015889,2]
[424553089,1780995039000,-356.69570335,0.00015889,2]
[424553082,1780995039000,-500.0,0.00015889,2]
[424553090,1780995039000,-500.0,0.00015889,2]
[424553079,1780995039000,-500.0,0.00015889,2]
[424553083,1780995039000,-500.0,0.00015889,2]
[424553080,1780995039000,-500.0,0.00015889,2]
[424553081,1780995039000,-500.0,0.00015889,2]
[424553085,1780995039000,-178.624404,0.00015889,2]
[424553132,1780995039000,-833.33,0.00016437,2]
[424553086,1780995039000,-500.0,0.00015889,2]
[424553088,1780995039000,-500.0,0.00015889,2]
[424553087,1780995039000,-500.0,0.00015889,2]
[424553091,1780995039000,-500.0,0.00015889,2]
[424553094,1780995039000,-316.67979508,0.00015889,2]
[424553102,1780995039000,-184.04363609,0.00015889,2]
[424553092,1780995039000,-500.0,0.00015889,2]
[424553101,1780995039000,-151.5,0.00015889,2]
[424553096,1780995039000,-500.0,0.00015889,2]
[424553098,1780995039000,-151.5,0.00015889,2]
[424553097,1780995039000,-500.0,0.00015889,2]
[424553130,1780995039000,-833.33,0.00016437,2]
[424553078,1780995039000,-833.33,0.00015888,2]
[424553134,1780995039000,-833.33,0.00016437,2]
[424553164,1780995039000,-500.0,0.00016438,2]
[424553177,1780995039000,-500.0,0.00016438,2]
[424553176,1780995039000,-192.39355945,0.00016438,2]
[424553166,1780995039000,-500.0,0.00016438,2]
[424553167,1780995039000,-500.0,0.00016438,2]
[424553174,1780995039000,-235.40905298,0.00016438,2]
[424553168,1780995039000,-500.0,0.00016438,2]
[424553173,1780995039000,-500.0,0.00016438,2]
[424553169,1780995039000,-500.0,0.00016438,2]
[424553171,1780995039000,-500.0,0.00016438,2]
[424553172,1780995039000,-500.0,0.00016438,2]
[424553180,1780995039000,-500.0,0.00016438,2]
[424553186,1780995039000,-500.0,0.00016438,2]
[424553175,1780995039000,-500.0,0.00016438,2]
[424553182,1780995039000,-500.0,0.00016438,2]
[424553179,1780995039000,-553.51143478,0.00016438,2]
[424553187,1780995039000,-500.0,0.00016438,2]
[424553184,1780995039000,-500.0,0.00016438,2]
[424553190,1780995039000,-500.0,0.00016438,2]
[424553181,1780995039000,-398.07369101,0.00016438,2]
[424553189,1780995039000,-500.0,0.00016438,2]
[424553185,1780995039000,-500.0,0.00016438,2]
[424553188,1780995039000,-500.0,0.00016438,2]
[424553191,1780995039000,-500.0,0.00016438,2]
[424553194,1780995039000,-500.0,0.00016438,2]
[424553193,1780995039000,-510.88,0.00016438,2]
[424553192,1780995039000,-500.0,0.00016438,2]
[424553136,1780995039000,-833.33,0.00016437,2]
[424553178,1780995039000,-500.0,0.00016438,2]
[424553165,1780995039000,-170.66646375,0.00016438,2]
[424553183,1780995039000,-500.0,0.00016438,2]
[424553163,1780995039000,-500.0,0.00016438,2]
[424553159,1780995039000,-500.0,0.00016438,2]
[424553127,1780995039000,-2047.14033878,0.00016076,2]
[424553131,1780995039000,-833.33,0.00016437,2]
[424553129,1780995039000,-151.0,0.00016369,2]
[424553135,1780995039000,-833.33,0.00016437,2]
[424553139,1780995039000,-833.33,0.00016437,2]
[424553140,1780995039000,-500.0,0.00016438,2]
[424553141,1780995039000,-500.0,0.00016438,2]
[424553133,1780995039000,-833.33,0.00016437,2]
[424553147,1780995039000,-296.64555614,0.00016438,2]
[424553143,1780995039000,-356.92410846,0.00016438,2]
[424553144,1780995039000,-500.0,0.00016438,2]
[424553150,1780995039000,-500.0,0.00016438,2]
[424553142,1780995039000,-288.16771948,0.00016438,2]
[424553145,1780995039000,-500.0,0.00016438,2]
[424553149,1780995039000,-500.0,0.00016438,2]
[424553148,1780995039000,-500.0,0.00016438,2]
[424553162,1780995039000,-500.0,0.00016438,2]
[424553153,1780995039000,-500.0,0.00016438,2]
[424553157,1780995039000,-500.0,0.00016438,2]
[424553155,1780995039000,-500.0,0.00016438,2]
[424553161,1780995039000,-500.0,0.00016438,2]
[424553160,1780995039000,-500.0,0.00016438,2]
[424553156,1780995039000,-2111.11,0.00016438,2]
[424553152,1780995039000,-500.0,0.00016438,2]
[424553154,1780995039000,-500.0,0.00016438,2]
[424553151,1780995039000,-500.0,0.00016438,2]
[424553146,1780995039000,-500.0,0.00016438,2]
[424553158,1780995039000,-1000.0,0.00016438,2]
[424553235,1780995040000,-500.0,0.00016438,2]
[424553238,1780995040000,-500.0,0.00016438,2]
[424553237,1780995040000,-500.0,0.00016438,2]
[424553240,1780995040000,-500.0,0.00016438,2]
[424553246,1780995040000,-500.0,0.00016438,2]
[424553245,1780995040000,-500.0,0.00016438,2]
[424553234,1780995040000,-500.0,0.00016438,2]
[424553244,1780995040000,-500.0,0.00016438,2]
[424553233,1780995040000,-500.0,0.00016438,2]
[424553242,1780995040000,-500.0,0.00016438,2]
[424553232,1780995040000,-500.0,0.00016438,2]
[424553231,1780995040000,-500.0,0.00016438,2]
[424553236,1780995040000,-500.0,0.00016438,2]
[424553259,1780995040000,-500.0,0.00016438,2]
[424553247,1780995040000,-500.0,0.00016438,2]
[424553251,1780995040000,-500.0,0.00016438,2]
[424553258,1780995040000,-500.0,0.00016438,2]
[424553250,1780995040000,-518.85766302,0.00016438,2]
[424553257,1780995040000,-500.0,0.00016438,2]
[424553248,1780995040000,-500.0,0.00016438,2]
[424553255,1780995040000,-500.0,0.00016438,2]
[424553261,1780995040000,-500.0,0.00016438,2]
[424553253,1780995040000,-553.09634011,0.00016438,2]
[424553252,1780995040000,-500.0,0.00016438,2]
[424553260,1780995040000,-500.0,0.00016438,2]
[424553254,1780995040000,-559.92,0.00016438,2]
[424553226,1780995040000,-350.67142914,0.00016438,2]
[424553239,1780995040000,-500.0,0.00016438,2]
[424553221,1780995040000,-500.0,0.00016438,2]
[424553196,1780995040000,-500.0,0.00016438,2]
[424553222,1780995040000,-500.0,0.00016438,2]
[424553256,1780995040000,-500.0,0.00016438,2]
[424553195,1780995040000,-500.0,0.00016438,2]
[424553197,1780995040000,-500.0,0.00016438,2]
[424553200,1780995040000,-500.0,0.00016438,2]
[424553198,1780995040000,-500.0,0.00016438,2]
[424553199,1780995040000,-500.0,0.00016438,2]
[424553201,1780995040000,-500.0,0.00016438,2]
[424553213,1780995040000,-500.0,0.00016438,2]
[424553212,1780995040000,-500.0,0.00016438,2]
[424553214,1780995040000,-500.0,0.00016438,2]
[424553211,1780995040000,-500.0,0.00016438,2]
[424553215,1780995040000,-500.0,0.00016438,2]
[424553206,1780995040000,-500.0,0.00016438,2]
[424553229,1780995040000,-500.0,0.00016438,2]
[424553205,1780995040000,-500.0,0.00016438,2]
[424553208,1780995040000,-500.0,0.00016438,2]
[424553203,1780995040000,-500.0,0.00016438,2]
[424553204,1780995040000,-500.0,0.00016438,2]
[424553209,1780995040000,-500.0,0.00016438,2]
[424553207,1780995040000,-500.0,0.00016438,2]
[424553224,1780995040000,-500.0,0.00016438,2]
[424553217,1780995040000,-515.17511676,0.00016438,2]
[424553227,1780995040000,-500.0,0.00016438,2]
[424553220,1780995040000,-500.0,0.00016438,2]
[424553230,1780995040000,-500.0,0.00016438,2]
[424553218,1780995040000,-500.0,0.00016438,2]
[424553223,1780995040000,-500.0,0.00016438,2]
[424553225,1780995040000,-500.0,0.00016438,2]
[424553202,1780995040000,-500.0,0.00016438,2]
[424553262,1780995040000,-350.06327024,0.00016438,2]
[424553210,1780995040000,-500.0,0.00016438,2]
[424553273,1780995040000,-500.0,0.00016438,2]
[424553294,1780995040000,-610.1283811,0.00016438,2]
[424553292,1780995040000,-500.0,0.00016438,2]
[424553300,1780995040000,-500.0,0.00016438,2]
[424553303,1780995040000,-500.0,0.00016438,2]
[424553307,1780995040000,-500.0,0.00016438,2]
[424553309,1780995040000,-500.0,0.00016438,2]
[424553311,1780995040000,-500.0,0.00016438,2]
[424553305,1780995040000,-500.0,0.00016438,2]
[424553315,1780995040000,-500.0,0.00016438,2]
[424553313,1780995040000,-500.0,0.00016438,2]
[424553329,1780995040000,-500.0,0.00016438,2]
[424553336,1780995040000,-500.0,0.00016438,2]
[424553332,1780995040000,-500.0,0.00016438,2]
[424553293,1780995040000,-500.0,0.00016438,2]
[424553331,1780995040000,-500.0,0.00016438,2]
[424553340,1780995040000,-500.0,0.00016438,2]
[424553319,1780995040000,-500.0,0.00016438,2]
[424553321,1780995040000,-500.0,0.00016438,2]
[424553338,1780995040000,-500.0,0.00016438,2]
[424553327,1780995040000,-500.0,0.00016438,2]
[424553342,1780995040000,-500.0,0.00016438,2]
[424553323,1780995040000,-500.0,0.00016438,2]
[424553325,1780995040000,-231.48164621,0.00016438,2]
[424553344,1780995040000,-500.0,0.00016438,2]
[424553346,1780995040000,-500.0,0.00016438,2]
[424553348,1780995040000,-500.0,0.00016438,2]
[424553350,1780995040000,-500.0,0.00016438,2]
[424553272,1780995040000,-500.0,0.00016438,2]
[424553317,1780995040000,-580.94,0.00016438,2]
[424553296,1780995040000,-500.0,0.00016438,2]
[424553334,1780995040000,-156.64413808,0.00016438,2]
[424553299,1780995040000,-500.0,0.00016438,2]
[424553263,1780995040000,-560.56921131,0.00016438,2]
[424553295,1780995040000,-500.0,0.00016438,2]
[424553265,1780995040000,-500.0,0.00016438,2]
[424553264,1780995040000,-500.0,0.00016438,2]
[424553268,1780995040000,-500.0,0.00016438,2]
[424553266,1780995040000,-500.0,0.00016438,2]
[424553270,1780995040000,-500.0,0.00016438,2]
[424553271,1780995040000,-500.0,0.00016438,2]
[424553269,1780995040000,-532.26,0.00016438,2]
[424553274,1780995040000,-500.0,0.00016438,2]
[424553277,1780995040000,-500.0,0.00016438,2]
[424553282,1780995040000,-500.0,0.00016438,2]
[424553279,1780995040000,-1001.51,0.00016438,2]
[424553284,1780995040000,-500.0,0.00016438,2]
[424553267,1780995040000,-500.0,0.00016438,2]
[424553281,1780995040000,-500.0,0.00016438,2]
[424553286,1780995040000,-500.0,0.00016438,2]
[424553276,1780995040000,-500.0,0.00016438,2]
[424553288,1780995040000,-435.81753768,0.00016438,2]
[424553289,1780995040000,-630.05,0.00016438,2]
[424553298,1780995040000,-500.0,0.00016438,2]
[424553287,1780995040000,-500.0,0.00016438,2]
[424553297,1780995040000,-500.0,0.00016438,2]
[424553290,1780995040000,-500.0,0.00016438,2]
[424553285,1780995040000,-500.0,0.00016438,2]
[424553278,1780995040000,-500.0,0.00016438,2]
[424553283,1780995040000,-163.44145334,0.00016438,2]
[424553275,1780995040000,-500.0,0.00016438,2]
[424553280,1780995040000,-500.0,0.00016438,2]
[424553380,1780995041000,-533.14514084,0.00016438,2]
[424553394,1780995041000,-500.0,0.00016438,2]
[424553367,1780995041000,-500.0,0.00016438,2]
[424553378,1780995041000,-500.0,0.00016438,2]
[424553372,1780995041000,-500.0,0.00016438,2]
[424553379,1780995041000,-500.0,0.00016438,2]
[424553377,1780995041000,-500.0,0.00016438,2]
[424553388,1780995041000,-500.0,0.00016438,2]
[424553381,1780995041000,-500.0,0.00016438,2]
[424553393,1780995041000,-500.0,0.00016438,2]
[424553376,1780995041000,-500.0,0.00016438,2]
[424553374,1780995041000,-500.0,0.00016438,2]
[424553371,1780995041000,-500.0,0.00016438,2]
[424553352,1780995041000,-500.0,0.00016438,2]
[424553375,1780995041000,-500.0,0.00016438,2]
[424553370,1780995041000,-500.0,0.00016438,2]
[424553368,1780995041000,-500.0,0.00016438,2]
[424553356,1780995041000,-500.0,0.00016438,2]
[424553360,1780995041000,-500.0,0.00016438,2]
[424553363,1780995041000,-500.0,0.00016438,2]
[424553361,1780995041000,-500.0,0.00016438,2]
[424553358,1780995041000,-500.0,0.00016438,2]
[424553362,1780995041000,-500.0,0.00016438,2]
[424553364,1780995041000,-500.0,0.00016438,2]
[424553354,1780995041000,-500.0,0.00016438,2]
[424553365,1780995041000,-500.0,0.00016438,2]
[424553392,1780995041000,-571.23314146,0.00016438,2]
[424553369,1780995041000,-500.0,0.00016438,2]
[424553385,1780995041000,-500.0,0.00016438,2]
[424553373,1780995041000,-500.0,0.00016438,2]
[424553383,1780995041000,-500.0,0.00016438,2]
[424553419,1780995041000,-1205.69,0.00016438,2]
[424553418,1780995041000,-556.76575614,0.00016438,2]
[424553421,1780995041000,-500.0,0.00016438,2]
[424553420,1780995041000,-500.0,0.00016438,2]
[424553422,1780995041000,-12.51218886,0.00016438,2]
[424553411,1780995041000,-567.42424386,0.00016438,2]
[424553410,1780995041000,-500.0,0.00016438,2]
[424553409,1780995041000,-500.0,0.00016438,2]
[424553406,1780995041000,-500.0,0.00016438,2]
[424553408,1780995041000,-500.0,0.00016438,2]
[424553407,1780995041000,-500.0,0.00016438,2]
[424553405,1780995041000,-500.0,0.00016438,2]
[424553396,1780995041000,-500.0,0.00016438,2]
[424553402,1780995041000,-500.0,0.00016438,2]
[424553391,1780995041000,-500.0,0.00016438,2]
[424553404,1780995041000,-500.0,0.00016438,2]
[424553389,1780995041000,-510.28927336,0.00016438,2]
[424553382,1780995041000,-500.0,0.00016438,2]
[424553386,1780995041000,-500.0,0.00016438,2]
[424553384,1780995041000,-500.0,0.00016438,2]
[424553387,1780995041000,-500.0,0.00016438,2]
[424553390,1780995041000,-500.0,0.00016438,2]
[424553397,1780995041000,-500.0,0.00016438,2]
[424553398,1780995041000,-500.0,0.00016438,2]
[424553400,1780995041000,-500.0,0.00016438,2]
[424553401,1780995041000,-500.0,0.00016438,2]
[424553399,1780995041000,-500.0,0.00016438,2]
[424553395,1780995041000,-500.0,0.00016438,2]
[424553403,1780995041000,-500.0,0.00016438,2]
[424553441,1780995043000,-2225.032055,0.00016274,2]
[424553453,1780995175000,500.0,0.00022695,120]
[424553454,1780995176000,500.0,0.00022695,120]
[424553455,1780995177000,500.0,0.00022695,120]
[424553456,1780995178000,500.0,0.00022695,120]
[424553457,1780995178000,500.0,0.00022695,120]
[424553459,1780995180000,500.0,0.00022695,120]
[424553458,1780995180000,500.0,0.00022695,120]
[424553460,1780995181000,500.0,0.00022695,120]
[424553461,1780995182000,500.0,0.00022695,120]
[424553462,1780995183000,500.0,0.00022695,120]
[424553464,1780995184000,500.0,0.00022695,120]
[424553463,1780995184000,500.0,0.00022695,120]
[424553465,1780995185000,500.0,0.00022695,120]
[424553466,1780995186000,500.0,0.00022695,120]
[424553467,1780995187000,500.0,0.00022695,120]
[424553468,1780995188000,500.0,0.00022695,120]
[424553469,1780995189000,500.0,0.00022695,120]
[424553471,1780995190000,500.0,0.00022695,120]
[424553470,1780995190000,500.0,0.00022695,120]
[424553472,1780995191000,500.0,0.00022695,120]
[424553473,1780995192000,500.0,0.00022695,120]
[424553475,1780995193000,500.0,0.00022695,120]
[424553474,1780995193000,500.0,0.00022695,120]
[424553476,1780995194000,500.0,0.00022695,120]
[424553477,1780995195000,500.0,0.00022695,120]
[424553479,1780995196000,500.0,0.00022695,120]
[424553478,1780995196000,500.0,0.00022695,120]
[424553480,1780995198000,500.0,0.00022695,120]
[424553482,1780995199000,500.0,0.00022695,120]
[424553481,1780995199000,500.0,0.00022695,120]
[424553483,1780995200000,500.0,0.00022695,120]
[424553484,1780995201000,500.0,0.00022695,120]
[424553485,1780995202000,500.0,0.00022695,120]
[424553486,1780995202000,500.0,0.00022695,120]
[424553487,1780995203000,500.0,0.00022695,120]
[424553488,1780995205000,500.0,0.00022695,120]
[424553489,1780995206000,500.0,0.00022695,120]
[424553490,1780995207000,500.0,0.00022695,120]
[424553492,1780995208000,157.56,0.00022695,120]
[424553491,1780995208000,500.0,0.00022695,120]
[424553494,1780995340000,500.0,0.00022695,120]
[424553499,1780995845000,171.0,0.00023288,120]
[424553578,1780996232000,-5480.46781393,0.00016134,2]
[424553577,1780996232000,-1737.19682241,0.00016038,2]
[424553575,1780996232000,-374.76434731,0.00015616,2]
[424553568,1780996232000,-156.64224062,0.00013011,2]
[424553570,1780996232000,-220.67935611,0.00013258,2]
[424553571,1780996232000,-186.575132,0.00015068,2]
[424553573,1780996232000,-210.020864,0.00015538,7]
[424553555,1780996232000,-152.0,0.00013011,2]
[424553553,1780996232000,-5000.0,0.00012624,2]
[424553598,1780996238000,-363.75,0.00016038,2]
[424553600,1780996238000,-786.41588511,0.00016134,2]
[424553599,1780996238000,-282.02884898,0.00016038,2]
[424553626,1780996243000,-390.66495456,0.00016134,2]
[424553627,1780996243000,-1238.82654812,0.00016134,2]
[424553639,1780996249000,-271886.58649466,0.00016234,2]
[424553637,1780996249000,-151.0,0.00016224,2]
[424553636,1780996249000,-768.72334842,0.00016205,2]
[424553638,1780996249000,-232.205,0.00016233,2]
[424553635,1780996249000,-399.59277614,0.00016153,2]
[424553634,1780996249000,-208.93746018,0.00016138,2]
[424553633,1780996249000,-28420.37762383,0.00016134,2]
[424554668,1780996381000,-1014.85702256,0.00023639,120]
[424554667,1780996381000,-49233.65018232,0.00023639,30]
[424561701,1780997431000,-258.32566082,0.00012614,2]
[424561850,1780997438000,-4741.67433918,0.00012614,2]
[424561851,1780997438000,-223.32750156,0.00013,2]
[424562156,1780997440000,-2133.95162927,0.00014835,2]
[424562154,1780997440000,-601.99260019,0.00013,2]
[424562420,1780997442000,-1930.63047428,0.00014998,2]
[424562416,1780997442000,-285.34674679,0.00014998,2]
[424562418,1780997442000,-2268.36599703,0.00014998,2]
[424562413,1780997442000,-1061.5064933,0.00014835,2]
[424562415,1780997442000,-1542.8854345,0.00014898,2]
[424562455,1780997443000,-500.0,0.00014998,2]
[424562476,1780997443000,-584.67708523,0.00014998,2]
[424562461,1780997443000,-366.26899309,0.00014998,2]
[424562469,1780997443000,-500.0,0.00014998,2]
[424562467,1780997443000,-500.0,0.00014998,2]
[424562481,1780997443000,-1683.6889118,0.00014998,2]
[424562459,1780997443000,-2268.36599703,0.00014998,2]
[424562471,1780997443000,-2268.36599703,0.00014998,2]
[424562465,1780997443000,-500.0,0.00014998,2]
[424562449,1780997443000,-500.0,0.00014998,2]
[424562447,1780997443000,-500.0,0.00014998,2]
[424562454,1780997443000,-2268.36599703,0.00014998,2]
[424562451,1780997443000,-2268.36599703,0.00014998,2]
[424562445,1780997443000,-2268.36599703,0.00014998,2]
[424562443,1780997443000,-2268.36599703,0.00014998,2]
[424562438,1780997443000,-2268.36599703,0.00014998,2]
[424562440,1780997443000,-2268.36599703,0.00014998,2]
[424562436,1780997443000,-1876.42381359,0.00014998,2]
[424562442,1780997443000,-2268.36599703,0.00014998,2]
[424562424,1780997443000,-391.94218344,0.00014998,2]
[424562422,1780997443000,-337.73552275,0.00014998,2]
[424562452,1780997443000,-500.0,0.00014998,2]
[424562473,1780997443000,-500.0,0.00014998,2]
[424562457,1780997443000,-500.0,0.00014998,2]
[424562483,1780997443000,-642.36753489,0.00014998,2]
[424562522,1780997443000,-2493.55620206,0.00014998,2]
[424562525,1780997443000,-3334.44720603,0.00015,2]
[424562520,1780997443000,-2493.55620206,0.00014998,2]
[424562518,1780997443000,-2438.49344681,0.00014998,2]
[424562516,1780997443000,-2438.49344681,0.00014998,2]
[424562512,1780997443000,-2438.49344681,0.00014998,2]
[424562514,1780997443000,-2438.49344681,0.00014998,2]
[424562498,1780997443000,-500.0,0.00014998,2]
[424562504,1780997443000,-2438.49344681,0.00014998,2]
[424562502,1780997443000,-2268.36599703,0.00014998,2]
[424562500,1780997443000,-500.0,0.00014998,2]
[424562494,1780997443000,-500.0,0.00014998,2]
[424562496,1780997443000,-2268.36599703,0.00014998,2]
[424562511,1780997443000,-2438.49344681,0.00014998,2]
[424562509,1780997443000,-2438.49344681,0.00014998,2]
[424562507,1780997443000,-2438.49344681,0.00014998,2]
[424562505,1780997443000,-2438.49344681,0.00014998,2]
[424562493,1780997443000,-500.0,0.00014998,2]
[424562491,1780997443000,-500.0,0.00014998,2]
[424562489,1780997443000,-500.0,0.00014998,2]
[424562485,1780997443000,-2268.36599703,0.00014998,2]
[424562523,1780997443000,-2493.55620206,0.00014998,2]
[424562487,1780997443000,-500.0,0.00014998,2]
[424562842,1780997446000,-1389.73896185,0.00015,2]
[424562844,1780997446000,-7331.56163246,0.00015,2]
[424563227,1780997511000,-561.88691362,0.00014835,2]
[424563326,1780998631000,-2990.75778416,0.00014405,2]
[424563491,1780998638000,-1731.99306683,0.00014993,2]
[424563493,1780998638000,-1731.99306683,0.00014993,2]
[424563507,1780998638000,-2100.73997782,0.00014993,2]
[424563505,1780998638000,-2100.73997782,0.00014993,2]
[424563499,1780998638000,-1731.99306683,0.00014993,2]
[424563509,1780998638000,-500.0,0.00014996,2]
[424563497,1780998638000,-1731.99306683,0.00014993,2]
[424563501,1780998638000,-1731.99306683,0.00014993,2]
[424563511,1780998638000,-500.0,0.00014996,2]
[424563515,1780998638000,-1167.8360847,0.00014997,2]